Cogmind - Beta 12 @@@ ROGUE MODE // 2023.04.16 @ 21:38:27 // Winter2019/RPGLIKE Player: ArabianSandBoa Result: Destroyed by H-71 Marshal with Heavy Mass Driver Performance ------------- Evolutions (6) 3000 Regions Visited (23) 4600 Robots Destroyed (427) 2135 Value Destroyed (21261) 21261 Prototype IDs (46) 920 Alien Tech Used (0) 0 Bonus (12407) 12407 TOTAL SCORE: 44323 Bonus ------- Triggered High Security 500 High Alert Combat Kills 9674 Follower Combat Kills 553 Entered Garrisons 600 Entered DSFs 500 Aligned with FarCom 300 Met Warlord at Base 500 MAIN.C Attacked Warlord 500 Warlord Defense Kills 380 Friendly Fire -1100 Cogmind --------- Core Integrity 0/1550 Matter 1651/1800 Energy 180/700 System Corruption 0% Temperature Cool (0) Movement Rolling (130) Ox2 Location -4/Factory Parts ------- > --- POWER (2) -------- Vortex Chain Reactor > --- PROPULSION (3) --- Centrium Wheel Centrium Wheel Centrium Wheel > --- UTILITY (11) ----- YI-UF0's Bottomless Matter Pit 0b10 Decoder Chip [Scout] Advanced Particle Charger Improved Weapon Cycler Advanced Phase Shifter Advanced Powered Armor Advanced Powered Armor Improved Thermal Shield Improved Force Field System Mapper System Purifier > --- WEAPON (4) ------- Enhanced Quantum Rifle Enhanced Quantum Rifle Enhanced Quantum Rifle Thermoblaster > --- INVENTORY (6) ---- Protomatter-46 Vortex Rail (13) Vortex Rail (8) Vortex Driver (11) Vortex Driver (9) Thermoblaster Peak State ------------ > --- POWER ------------ Vortex Chain Reactor > --- PROPULSION ------- Centrium Wheel Centrium Wheel Centrium Wheel > --- UTILITY ---------- YI-UF0's Bottomless Matter Pit 0b10 Decoder Chip [Scout] Advanced Particle Charger Quantum Capacitor Advanced Phase Shifter Advanced Powered Armor Advanced Powered Armor Improved Thermal Shield Improved Force Field System Mapper > --- WEAPON ----------- Enhanced Quantum Rifle Enhanced Quantum Rifle Enhanced Quantum Rifle Vortex Driver > --- INVENTORY -------- System Purifier Vortex Rail Vortex Rail Vortex Driver Thermoblaster Thermoblaster [Rating: 163] Favorites ----------- Power Improved Deuterium Engine Engine Improved Deuterium Engine Power Core Nuclear Core Reactor Vortex Chain Reactor Propulsion Armored Wheel Leg Experimental Myomer Leg Wheel Armored Wheel Flight Unit Cooled Impulse Thruster Utility Cloak of Protection Device Cloak of Protection Storage YI-UF0's Bottomless Matter Pit Processor 0b10 Decoder Chip [Scout] Hackware System Mapper Protection Medium Reactive Plating Weapon Light EM Pulse Cannon Energy Gun Vortex Rail Energy Cannon Light EM Pulse Cannon Ballistic Gun Heavy Assault Rifle Ballistic Cannon Heavy Linear Accelerator Launcher Heavy Missile Launcher Slashing Weapon Plasma Sword Build | -11 -10 -10 -9 -9 -9 -8 -8 -8 -7 -6 -6 -5 -5 -5 -5 -5 -5 -5 -5 -4 -4 -4 -4 ------- Run | Jun Mat Min Mat Min Exi Min Mat Gar Fac Fac DSF Fac Was Fac Gar Fac Upp Upp War Pro Fac Gar Fac Slots Evolved 16 | . 6 . 3 . . . 2 . 2 . . . 1 . . 1 . . 1 . . . . Power 1 | . 1 . . . . . . . . . . . . . . . . . . . . . . Propulsion 2 | . 1 . 1 . . . . . . . . . . . . . . . . . . . . Utility 10 | . 3 . 2 . . . 2 . 2 . . . 1 . . . . . . . . . . Weapon 3 | . 1 . . . . . . . . . . . . . . 1 . . 1 . . . . Parts Attached 187 | 1 12 2 21 4 1 3 2 6 31 2 1 5 4 2 5 6 12 6 17 4 1 18 21 Power 12 | . 3 1 3 . . . . 1 1 . . . . . 1 . 1 . 1 . . . . Engine 6 | . 3 1 1 . . . . . 1 . . . . . . . . . . . . . . Core 4 | . . . 2 . . . . 1 . . . . . . . . 1 . . . . . . Reactor 2 | . . . . . . . . . . . . . . . 1 . . . 1 . . . . Propulsion 15 | . 2 . 2 . . . . . 2 . . . . . . . . . 4 . 1 1 3 Treads . | . . . . . . . . . . . . . . . . . . . . . . . . Leg 2 | . . . . . . . . . . . . . . . . . . . 2 . . . . Wheel 11 | . 2 . 2 . . . . . 2 . . . . . . . . . 1 . . 1 3 Hover . | . . . . . . . . . . . . . . . . . . . . . . . . Flight 2 | . . . . . . . . . . . . . . . . . . . 1 . 1 . . Utility 73 | . 5 1 12 2 1 1 2 4 11 . 1 2 1 2 1 1 3 2 7 2 . 6 6 Device 34 | . 1 . 1 1 1 . 2 2 7 . . 2 1 . 1 1 3 . 2 1 . 2 6 Storage 3 | . . 1 . . . . . . 1 . . . . . . . . . . 1 . . . Processor 19 | . 2 . 7 1 . 1 . 1 1 . 1 . . . . . . 2 2 . . 1 . Hackware 4 | . . . . . . . . . 1 . . . . 2 . . . . 1 . . . . Protection 13 | . 2 . 4 . . . . 1 1 . . . . . . . . . 2 . . 3 . Artifact . | . . . . . . . . . . . . . . . . . . . . . . . . Weapon 87 | 1 2 . 4 2 . 2 . 1 17 2 . 3 3 . 3 5 8 4 5 2 . 11 12 Energy Gun 34 | 1 2 . 1 . . . . . 5 . . 2 . . 2 2 4 1 2 . . 7 5 Energy Cannon 21 | . . . 3 1 . 1 . . 4 . . 1 . . . . . . 3 2 . 2 4 Ballistic Gun 5 | . . . . . . . . 1 4 . . . . . . . . . . . . . . Ballistic Cannon 1 | . . . . . . . . . . . . . 1 . . . . . . . . . . Launcher 21 | . . . . 1 . 1 . . 4 2 . . 2 . 1 1 2 2 . . . 2 3 Special Weapon . | . . . . . . . . . . . . . . . . . . . . . . . . Impact Weapon . | . . . . . . . . . . . . . . . . . . . . . . . . Slashing Weapon 5 | . . . . . . . . . . . . . . . . 2 2 1 . . . . . Piercing Weapon . | . . . . . . . . . . . . . . . . . . . . . . . . Special Melee Weapon . | . . . . . . . . . . . . . . . . . . . . . . . . Unidentified Prototypes 17 | . . 1 1 . . . . . 1 1 . . . . . 1 . . 12 . . . . Corrupted Parts 6 | . . 2 . . . . . . 4 . . . . . . . . . . . . . . System Corruption 26 | . . 8 . . . . . . 18 . . . . . . . . . . . . . . Parts Lost 3 | . . . . . . . . . . . . 1 1 . . 1 . . . . . . . Power . | . . . . . . . . . . . . . . . . . . . . . . . . Propulsion 1 | . . . . . . . . . . . . . 1 . . . . . . . . . . Utility 2 | . . . . . . . . . . . . 1 . . . 1 . . . . . . . Weapon . | . . . . . . . . . . . . . . . . . . . . . . . . Highest Loss Streak 1 | . . . . . . . . . . . . 1 1 . . 1 . . . . . . . To Critical Strikes . | . . . . . . . . . . . . . . . . . . . . . . . . Average Slot Usage (%) 92 | . 88 99 98 100 100 100 98 99 95 94 93 91 85 81 85 87 88 87 87 88 89 89 92 Engine 5 | . 19 19 12 7 7 7 6 6 9 11 11 11 11 11 5 5 3 . . . . . . Core 2 | . . . 3 7 7 7 6 6 2 . . . . . . . 1 5 2 . . . . Reactor 2 | . . . . . . . . . . . . . . . 4 5 5 5 5 5 5 5 5 Wheel 11 | . 19 20 22 23 23 23 20 20 14 11 11 11 6 5 5 5 5 5 4 5 5 7 12 Device 28 | . 11 10 4 1 10 15 22 32 34 35 29 33 41 40 38 40 46 40 33 28 30 25 29 Storage 3 | . . 5 7 5 . . . . 4 5 5 5 5 5 5 5 5 5 2 1 5 5 5 Processor 7 | . . 4 14 30 26 23 20 8 2 . 4 5 5 2 . . . 5 12 13 10 5 5 Hackware 2 | . . . . . . . . . 1 5 5 1 . 5 11 8 . . 2 5 5 5 5 Protection 9 | . 11 20 14 7 7 7 6 11 11 11 11 9 5 5 5 5 5 5 4 5 5 14 10 Energy Gun 7 | . 25 20 6 . . . . . 3 . . 9 2 . 4 7 10 11 8 10 10 13 14 Energy Cannon 4 | . . . 9 14 15 8 13 10 2 . . . . . . . . . 5 10 10 3 2 Launcher 1 | . . . . . . 5 . . 3 11 11 1 4 . 1 2 . 1 . . . 2 3 Naked Turns . | . . . . . . . . . . . . . . . . . . . . . . . . Heaviest Build 161 | 2 30 45 47 43 44 44 47 56 91 93 93 91 103 103 108 99 113 113 133 137 137 161 151 Greatest Support 53 | 3 37 37 49 45 45 45 45 45 45 45 45 45 45 33 33 33 33 33 33 33 33 45 53 Greatest Overweight (x) 5 | . 5 1 1 . . . 1 1 2 2 2 2 3 3 3 2 3 3 4 4 4 4 3 Average Overweight (x) 1 | . . . . . . . . 1 1 2 2 1 1 3 2 2 2 2 2 3 4 3 2 Largest Inventory Capacity 6 | . 1 1 2 3 3 3 3 3 3 3 3 3 4 4 4 4 5 5 5 5 5 6 6 Average Capacity 3 | . . 1 1 2 3 3 3 3 3 3 3 3 3 4 4 4 4 5 5 5 5 5 6 Most Carried 6 | . 1 1 2 3 3 3 3 3 3 3 3 3 3 4 4 4 5 5 5 5 5 6 6 Average Carried 3 | . . 1 1 2 3 3 3 2 2 3 2 3 2 3 3 3 4 4 4 4 4 5 5 Final Capacity 6 | . 1 1 2 3 3 3 3 3 3 3 3 3 4 4 4 4 5 5 5 5 5 6 6 Final Carried 6 | . 1 1 2 3 3 3 3 3 3 3 3 3 3 4 4 4 5 5 5 4 4 6 6 Class Distribution -------------------- 38% | Hacker-Mutant 24% | Hacker-Skirmisher 12% | Hacker-Gunner 11% | Scavenger-Skirmisher 6% | Scavenger-Mutant 4% | Hacker-Assassin Dominant Class ---------------- Mutant | -10/Materials Hacker-Mutant | -10/Mines Hacker-Mutant | -9/Materials Hacker-Mutant | -9/Mines Scavenger-Mutant | -9/Exiles Hacker-Mutant | -8/Mines Hacker-Skirmisher | -8/Materials Hacker-Skirmisher | -8/Garrison Scavenger-Skirmisher | -7/Factory Hacker-Skirmisher | -6/Factory Hacker-Skirmisher | -6/DSF Hacker-Skirmisher | -5/Factory Hacker-Mutant | -5/Waste Hacker-Skirmisher | -5/Factory Hacker-Skirmisher | -5/Garrison Hacker-Mutant | -5/Factory Hacker-Assassin | -5/Upper Caves Hacker-Mutant | -5/Upper Caves Hacker-Mutant | -5/Warlord Hacker-Mutant | -4/Proximity Caves Hacker-Mutant | -4/Factory Hacker-Gunner | -4/Garrison Hacker-Gunner | -4/Factory Resources | -11 -10 -10 -9 -9 -9 -8 -8 -8 -7 -6 -6 -5 -5 -5 -5 -5 -5 -5 -5 -4 -4 -4 -4 ----------- Run | Jun Mat Min Mat Min Exi Min Mat Gar Fac Fac DSF Fac Was Fac Gar Fac Upp Upp War Pro Fac Gar Fac Matter Collected 8550 | 200 100 567 965 281 . 97 20 141 2043 19 223 264 1173 18 1148 310 266 225 194 7 . 223 66 Remotely 5884 | . . . . . . . 10 121 2043 19 223 264 1173 18 1148 310 266 225 64 . . . . Salvage Created 16244 | . 1020 399 1754 68 . 362 530 1076 4345 95 482 151 919 6 872 173 332 476 9 139 67 2176 793 Parts 744 | . 56 12 97 25 . 9 30 73 199 4 16 7 3 3 65 10 11 11 6 7 . 70 30 Haulers Intercepted 12 | . 2 . 5 . . . 1 . 1 1 . . . . . 1 . . . . 1 . . Recyclers Shooed 8 | . 4 . 1 . . . . . 2 . . . . . . . . . . . . . 1 Parts Field Recycled . | . . . . . . . . . . . . . . . . . . . . . . . . Retrieved Matter . | . . . . . . . . . . . . . . . . . . . . . . . . Parts Self-Destructed 25 | . . . . . . . . . . . . . . . . . 10 8 . 7 . . . Prevented . | . . . . . . . . . . . . . . . . . . . . . . . . Kills | -11 -10 -10 -9 -9 -9 -8 -8 -8 -7 -6 -6 -5 -5 -5 -5 -5 -5 -5 -5 -4 -4 -4 -4 ------- Run | Jun Mat Min Mat Min Exi Min Mat Gar Fac Fac DSF Fac Was Fac Gar Fac Upp Upp War Pro Fac Gar Fac Combat Hostiles Destroyed 369 | . 12 3 26 9 . 6 9 26 127 . 11 1 6 . 39 5 10 10 4 9 1 44 11 Guns 75 | . 6 3 4 . . . . 5 12 . . 1 . . 1 . 3 3 3 4 . 24 6 Cannons 77 | . . . 19 4 . 1 7 12 13 . . . . . 9 . . . . 3 1 6 2 AOE 204 | . 6 . 2 5 . 3 . 3 101 . 11 . 6 . 29 5 7 7 1 2 . 13 3 Classes Destroyed 22 | . 9 . 4 1 . 1 . 1 3 . 1 . 1 . . . . . . 1 . . . Worker 8 | . 1 . 2 . . . . . 3 1 . . . . . . . . . . . . 1 Builder 8 | . 3 . . 2 . . . . . . . 1 . . . . . . . . . . 2 Tunneler 7 | . 1 . 1 1 . 1 . . 2 . . 1 . . . . . . . . . . . Hauler 12 | . 2 . 5 . . . 1 . 1 1 . . . . . 1 . . . . 1 . . Recycler 15 | . 4 2 2 . . . . . 6 . . . . . . . . . . . . . 1 Carrier 1 | . . . . . . . . . 1 . . . . . . . . . . . . . . Mechanic 9 | . . . . . . . . . 9 . . . . . . . . . . . . . . Operator 9 | . 2 . 2 . . . . . 4 . . . . 1 . . . . . . . . . Watcher 8 | . 3 . 3 . . . . . 1 . . . . . . 1 . . . . . . . Swarmer 75 | . 5 3 3 7 . 3 . 2 . . . . . . 19 4 5 7 2 6 . 9 . Grunt 136 | . 7 . 14 . . 2 3 7 50 . 6 . . . 11 . 3 . . 1 1 23 8 Brawler 16 | . . . 1 . . . . 1 11 . 1 . . . . . 1 . . . . 1 . Duelist 16 | . . . 3 . . . . 1 8 . 1 . . . . . . . . . . 1 2 Protector 16 | . . . 1 . . . . . 15 . . . . . . . . . . . . . . Sentry 33 | . . . 5 . . . 5 13 5 . . 1 . . . . 1 1 . 1 . 1 . Demolisher 2 | . . . . 2 . . . . . . . . . . . . . . . . . . . Specialist 7 | . . . . . . . . . 2 . . . . . 5 . . . . . . . . Hunter 33 | . . . . . . 1 1 1 22 . 2 . . . 3 1 . . 1 . . 1 . Programmer 28 | . . . . . . . . 1 14 . . . . . 1 . . 2 1 . . 8 1 Heavy 1 | . . . . . . . . . . . 1 . . . . . . . . . . . . Behemoth 1 | . . . . . . . . . . . . . . . . . . . . 1 . . . Compactor 6 | . . . . . . . . . . . . . 6 . . . . . . . . . . Best Kill Streak 30 | . 8 3 9 9 . 3 2 7 30 2 4 2 3 1 13 4 5 4 4 5 2 6 6 Combat Bots Only 29 | . 3 3 9 7 . 3 2 7 29 . 4 1 3 . 13 4 5 4 4 5 1 6 6 Max Kills in Single Turn 9 | . 2 1 2 3 . 3 1 2 9 2 4 1 2 1 6 4 3 3 1 2 1 3 2 Gunslinging 1 | . . . . . . . . . . . . . . . . . . . . . . 1 . Exploded 9 | . 2 . 2 3 . 3 . 1 9 . 4 . 2 . 6 4 3 3 1 2 . 3 2 Melee . | . . . . . . . . . . . . . . . . . . . . . . . . Uniques/NPCs Destroyed 1 | . . 1 . . . . . . . . . . . . . . . . . . . . . YI-UF0 (-10/Mines) Combat | -11 -10 -10 -9 -9 -9 -8 -8 -8 -7 -6 -6 -5 -5 -5 -5 -5 -5 -5 -5 -4 -4 -4 -4 -------- Run | Jun Mat Min Mat Min Exi Min Mat Gar Fac Fac DSF Fac Was Fac Gar Fac Upp Upp War Pro Fac Gar Fac Damage Taken 10597 | . 182 45 661 328 . 194 118 819 2462 . 177 61 480 . 515 54 158 215 227 304 . 1657 1940 Core 7184 | . 123 26 416 234 . 150 93 578 1702 . 138 47 355 . 380 34 110 159 166 227 . 1007 1239 Absorbed by Shields 2331 | . 72 20 113 . . . . 179 898 . 64 24 183 . 201 21 62 79 65 15 . . 335 Redirected to Core 6422 | . 103 26 369 171 . 132 65 531 1535 . 105 47 333 . 347 24 97 143 157 179 . 963 1095 Regen/Repaired (Parts) 57 | . . . . . . . . . . . . . . . . . . . 57 . . . . Core Remaining (%) 65 | 100 . 95 . . . 77 . 93 31 . 25 . . . . . . . . 39 . . . Volleys Fired 815 | . 67 12 88 11 . 14 24 94 170 2 6 9 17 1 72 7 14 18 8 21 2 123 35 Largest 4 | . 2 2 2 2 . 2 2 2 2 2 2 2 2 1 2 2 3 3 2 4 2 4 4 Hottest 484 | . 90 90 112 112 . 112 112 112 144 78 100 450 450 83 275 150 237 237 90 200 200 484 455 Shots Fired 1607 | . 124 24 176 20 . 23 48 162 319 4 12 18 30 1 100 9 26 39 15 58 4 307 88 Gun 867 | . 124 24 70 . . . . 25 119 . . 18 16 . 54 4 23 34 15 34 . 244 63 Cannon 502 | . . . 106 18 . 18 48 137 73 . . . . 1 33 . . . . 24 4 21 19 Launcher 238 | . . . . 2 . 5 . . 127 4 12 . 14 . 13 5 3 5 . . . 42 6 Special . | . . . . . . . . . . . . . . . . . . . . . . . . Kinetic 94 | . . . . . . . . 25 35 . . . . 1 33 . . . . . . . . Thermal 581 | . . . . . . . . . 79 . . 18 16 . 54 4 23 34 . . . 286 67 Explosive 190 | . . . . 2 . 5 . . 127 4 12 . 14 . 13 5 3 5 . . . . . Electromagnetic 623 | . 124 24 176 18 . 18 48 137 78 . . . . . . . . . . . . . . Entropic 119 | . . . . . . . . . . . . . . . . . . . 15 58 4 21 21 Robot Hit Streak 49 | . 8 9 27 16 . 18 32 36 49 48 7 9 27 4 10 3 4 8 20 12 8 46 39 Robot Miss Streak 8 | . 5 4 4 1 . 1 1 2 1 . 6 1 2 . 4 8 3 1 . 2 . 3 1 Penetration Max 1 | . . . . . . . . . . . . . . . . . . . . 1 1 . 1 Secondary Targets 13 | . 2 1 . . . . . . . . . . . . . . . 1 . . . 6 3 Max Gunslinging Chain 1 | . 1 1 . . . . . . . . . . . . . . . 1 . . . 1 1 Shots Hit Robots 906 | . 56 15 86 16 . 16 36 89 213 1 6 10 27 1 27 4 11 30 12 39 3 151 57 Core Hits 831 | . 29 8 52 15 . 7 14 33 321 2 69 5 19 . 72 15 25 17 5 14 2 76 31 Critical Kills 1 | . . . . . . . . 1 . . . . . . . . . . . . . . . Critical Parts Destroyed 6 | . . . . . . . . . 1 . . . . . . . . . 2 2 . . 1 Critical Strikes 42 | . 1 1 5 2 . . . 2 13 . . . . . 2 . . . 2 5 3 4 2 Burn 9 | . . . . . . . . . 9 . . . . . . . . . . . . . . Destroy 3 | . . . . . . . . 2 1 . . . . . . . . . . . . . . Blast 2 | . . . . . . . . . . . . . . . 2 . . . . . . . . Corrupt 12 | . 1 1 5 2 . . . . 3 . . . . . . . . . . . . . . Detonate 5 | . . . . . . . . . . . . . . . . . . . 2 2 . . 1 Sunder 11 | . . . . . . . . . . . . . . . . . . . . 3 3 4 1 Melee Attacks 1 | . . . . . . . . . . . . . . . . . . . 1 . . . . Impact . | . . . . . . . . . . . . . . . . . . . . . . . . Slashing 1 | . . . . . . . . . . . . . . . . . . . 1 . . . . Piercing . | . . . . . . . . . . . . . . . . . . . . . . . . Sneak Attacks . | . . . . . . . . . . . . . . . . . . . . . . . . Combat Hostiles . | . . . . . . . . . . . . . . . . . . . . . . . . Follow-up Attacks . | . . . . . . . . . . . . . . . . . . . . . . . . Damage Inflicted 64414 | . 1321 202 2539 672 . 619 811 2180 20760 90 2806 234 5720 86 4342 794 1003 1849 901 3183 485 9331 4486 Guns 14318 | . 1014 202 403 . . . . 233 1963 . . 234 412 . 63 25 259 906 550 1346 . 5153 1555 Cannons 13011 | . . . 1495 289 . 332 811 1659 1548 . . . . 86 1523 . . . . 1601 485 1138 2044 Explosions 37085 | . 307 . 641 383 . 287 . 288 17249 90 2806 . 5308 . 2756 769 744 943 351 236 . 3040 887 Melee . | . . . . . . . . . . . . . . . . . . . . . . . . Ramming . | . . . . . . . . . . . . . . . . . . . . . . . . Kinetic 2433 | . . . . . . . . 233 591 . . . . 86 1523 . . . . . . . . Thermal 16445 | . 307 . 567 94 . 32 . 288 2095 . . 234 412 . 63 75 259 906 351 236 . 8193 2333 Explosive 30355 | . . . 74 289 . 255 . . 16406 55 2806 . 5308 . 2756 719 744 943 . . . . . Electromagnetic 7908 | . 1014 202 1898 289 . 332 811 1659 1668 35 . . . . . . . . . . . . . Impact . | . . . . . . . . . . . . . . . . . . . . . . . . Slashing . | . . . . . . . . . . . . . . . . . . . . . . . . Piercing . | . . . . . . . . . . . . . . . . . . . . . . . . Entropic 7273 | . . . . . . . . . . . . . . . . . . . 550 2947 485 1138 2153 Highest Corruption 11 | . . 8 . . . . . 2 11 . . . . . 2 6 6 8 8 2 . 2 1 Average Corruption 5 | . . 7 . . . . . 1 6 . . . . . 1 3 6 6 6 1 . 1 1 Corruption Purged 22 | . . . . . . . . . 17 . . . . . . . . . . 2 . 2 1 Corruption Blocked 5 | . . . . . . . . . . . . . . . . . . . 5 . . . . Effects 109 | . . 2 . . . . . 5 44 . . . . . 5 5 25 18 3 1 . . 1 Message Errors 29 | . . 1 . . . . . 1 10 . . . . . 1 3 9 3 . 1 . . . Matter Fused 25 | . . . . . . . . 1 6 . . . . . 2 . 5 7 3 . . . 1 Heat Flow Errors 13 | . . . . . . . . 1 9 . . . . . . . 3 . . . . . . Energy Discharges 15 | . . . . . . . . 1 5 . . . . . 1 . 5 3 . . . . . Data Loss (minor) 9 | . . 1 . . . . . . 4 . . . . . . 1 1 2 . . . . . Data Loss (major) 6 | . . . . . . . . . 2 . . . . . . 1 1 2 . . . . . Misfires 7 | . . . . . . . . . 5 . . . . . 1 . . 1 . . . . . Alerts 2 | . . . . . . . . 1 . . . . . . . . 1 . . . . . . Weapon Failures 3 | . . . . . . . . . 3 . . . . . . . . . . . . . . Overload Shots 5 | . . . . . . . . . . . . 2 2 . 1 . . . . . . . . Overflow Damage 1780 | . 20 . 1 53 . 59 . . 805 . 22 . . 51 171 1 9 11 . 69 43 324 141 Projectiles 595 | . . . 1 32 . . . . 13 . . . . 51 117 . . . . 69 43 128 141 Explosions 1185 | . 20 . . 21 . 59 . . 792 . 22 . . . 54 1 9 11 . . . 196 . Melee . | . . . . . . . . . . . . . . . . . . . . . . . . Knockbacks 10 | . . . . . . . . . . . . . . . 10 . . . . . . . . Impact . | . . . . . . . . . . . . . . . . . . . . . . . . Kinetic 9 | . . . . . . . . . . . . . . . 9 . . . . . . . . Secondary 1 | . . . . . . . . . . . . . . . 1 . . . . . . . . Self-Inflicted Damage 1523 | . 94 . 69 40 . 2 . 89 466 . 24 . 639 . 100 . . . . . . . . Shots 62 | . 3 . 2 1 . 1 . 2 17 . 1 . 30 . 5 . . . . . . . . Rammed . | . . . . . . . . . . . . . . . . . . . . . . . . Targets Rammed . | . . . . . . . . . . . . . . . . . . . . . . . . Kicked . | . . . . . . . . . . . . . . . . . . . . . . . . Crushed . | . . . . . . . . . . . . . . . . . . . . . . . . Highest Temperature 537 | . 290 . 213 84 . 156 84 235 360 . . 333 381 . 207 51 206 537 . 51 72 389 281 Average Temperature 74 | . 82 . 36 31 . 66 41 84 91 . . 74 108 . 47 30 70 190 . 23 38 93 80 Received Heat Transfer 1939 | . 38 . 239 . . 81 54 230 437 . 42 12 . . 104 . 85 6 . 9 . 358 244 Effects 7 | . . . . . . . . . 1 . . 2 2 . . . . 2 . . . . . Shutdowns 3 | . . . . . . . . . . . . 1 1 . . . . 1 . . . . . Interference 1 | . . . . . . . . . . . . 1 . . . . . . . . . . . Short Circuit 1 | . . . . . . . . . . . . . . . . . . 1 . . . . . Damage (minor) 2 | . . . . . . . . . 1 . . . 1 . . . . . . . . . . Siege Activations . | . . . . . . . . . . . . . . . . . . . . . . . . Robots Corrupted 15 | . . 1 3 . . 2 2 6 1 . . . . . . . . . . . . . . Combat Hostiles 12 | . . . 1 . . 2 2 6 1 . . . . . . . . . . . . . . Parts Fried 49 | . 5 2 8 3 . 3 7 12 8 1 . . . . . . . . . . . . . Impact Corruptions . | . . . . . . . . . . . . . . . . . . . . . . . . Robots Melted 1 | . . . . . . . . . . . . . . . . . . . . . . 1 . Combat Hostiles 1 | . . . . . . . . . . . . . . . . . . . . . . 1 . Parts Melted 35 | . . . . . . 1 . . 8 . . 3 . . . . . 1 . . . 18 4 Heat Transferred 18374 | . 450 . 691 100 . 50 . 274 3597 . . 370 618 . 74 87 333 962 100 200 . 7939 2529 Parts Sabotaged . | . . . . . . . . . . . . . . . . . . . . . . . . Parts Stolen . | . . . . . . . . . . . . . . . . . . . . . . . . Parts Stripped . | . . . . . . . . . . . . . . . . . . . . . . . . Power Chain Reactions 22 | . 6 . 7 1 . . . 5 3 . . . . . . . . . . . . . . Missiles Intercepted . | . . . . . . . . . . . . . . . . . . . . . . . . Alert | -11 -10 -10 -9 -9 -9 -8 -8 -8 -7 -6 -6 -5 -5 -5 -5 -5 -5 -5 -5 -4 -4 -4 -4 ------- Run | Jun Mat Min Mat Min Exi Min Mat Gar Fac Fac DSF Fac Was Fac Gar Fac Upp Upp War Pro Fac Gar Fac Peak Influence 4665 | . 460 259 874 582 . 256 356 1239 4665 2417 2038 1270 584 413 1800 1611 . . . . 49 2039 1305 Initial 2285 | . . 179 100 340 . . 99 150 650 2285 1691 1069 444 408 301 945 . . . . 18 34 1070 Average 1006 | . 225 201 474 521 . 153 225 750 1778 2345 1847 1190 525 413 1009 1221 . . . . 24 944 1194 Maximum Alert Level 5 | . 2 1 3 2 . 1 1 4 5 5 5 4 2 2 5 5 . . . . . 5 4 Low Security (%) 12 | 100 42 73 15 . . 85 42 6 . . . . . . . . . . . . 100 7 . Level 1 13 | . 47 26 33 16 . 14 57 7 . . . . . . 12 . . . . . . 12 . Level 2 19 | . 10 . 24 83 . . . 32 13 . . . 100 100 30 . . . . . . 18 . Level 3 20 | . . . 26 . . . . 43 33 . . 21 . . 11 45 . . . . . 20 12 Level 4 17 | . . . . . . . . 9 16 . . 78 . . 19 49 . . . . . 29 87 Level 5 8 | . . . . . . . . . 1 100 100 . . . 25 5 . . . . . 11 . High Security 8 | . . . . . . . . . 35 . . . . . . . . . . . . . . Max Security . | . . . . . . . . . . . . . . . . . . . . . . . . Sterilizations 2 | . . . . . . . . . 1 . 1 . . . . . . . . . . . . Squads Dispatched 59 | . 3 . 5 . . 1 2 . 35 1 . 3 . 1 . 4 . . . . . . 4 Investigation 16 | . 3 . 2 . . 1 2 . 2 1 . 2 . 1 . 2 . . . . . . . Extermination 2 | . . . . . . . . . 1 . . . . . . . . . . . . . 1 Reinforcement 8 | . . . 1 . . . . . 5 . . . . . . 1 . . . . . . 1 Assault 32 | . . . 2 . . . . . 27 . . 1 . . . . . . . . . . 2 Garrison 1 | . . . . . . . . . . . . . . . . 1 . . . . . . . Intercept . | . . . . . . . . . . . . . . . . . . . . . . . . Searches Triggered . | . . . . . . . . . . . . . . . . . . . . . . . . Construction Impeded 1 | . . . . . . . . . . . . . . . . 1 . . . . . . . Haulers Reinforced . | . . . . . . . . . . . . . . . . . . . . . . . . Active Scanning Responses . | . . . . . . . . . . . . . . . . . . . . . . . . Cargo Convoy Interrupts 1 | . . . . . . . . . 1 . . . . . . . . . . . . . . Stealth | -11 -10 -10 -9 -9 -9 -8 -8 -8 -7 -6 -6 -5 -5 -5 -5 -5 -5 -5 -5 -4 -4 -4 -4 --------- Run | Jun Mat Min Mat Min Exi Min Mat Gar Fac Fac DSF Fac Was Fac Gar Fac Upp Upp War Pro Fac Gar Fac Distress Signals 6 | . . . 2 . . . . . . . . . . . . . . . 3 . . . 1 Communications Jammed . | . . . . . . . . . . . . . . . . . . . . . . . . Distress Signals . | . . . . . . . . . . . . . . . . . . . . . . . . Times Spotted 428 | . 20 3 37 9 . 6 11 29 156 . 11 1 5 . 33 7 10 7 12 7 1 45 18 Peak Tracking Total 16 | . 3 3 8 6 . 3 3 7 16 . 4 1 3 . 6 4 5 4 9 5 1 7 9 Tactical Retreats 8 | . . . . . . . . 4 2 . . . . . 1 . . . . . . 1 . Traps | -11 -10 -10 -9 -9 -9 -8 -8 -8 -7 -6 -6 -5 -5 -5 -5 -5 -5 -5 -5 -4 -4 -4 -4 ------- Run | Jun Mat Min Mat Min Exi Min Mat Gar Fac Fac DSF Fac Was Fac Gar Fac Upp Upp War Pro Fac Gar Fac Traps Triggered 16 | . . . 1 . . . . 4 5 1 . 2 . . 1 . . . . . 1 . 1 Indirectly 4 | . . . . . . . . . 4 . . . . . . . . . . . . . . Trap Hack Attempts . | . . . . . . . . . . . . . . . . . . . . . . . . Triggered . | . . . . . . . . . . . . . . . . . . . . . . . . Disarmed . | . . . . . . . . . . . . . . . . . . . . . . . . Reprogrammed 2 | . 2 . . . . . . . . . . . . . . . . . . . . . . Reused . | . . . . . . . . . . . . . . . . . . . . . . . . Traps Extracted . | . . . . . . . . . . . . . . . . . . . . . . . . Installed 2 | . . . . . . . . . . . . . . . . . . 2 . . . . . Triggered 23 | . . . . . . . . . 2 . . . . . . . . . 21 . . . . Machines | -11 -10 -10 -9 -9 -9 -8 -8 -8 -7 -6 -6 -5 -5 -5 -5 -5 -5 -5 -5 -4 -4 -4 -4 ---------- Run | Jun Mat Min Mat Min Exi Min Mat Gar Fac Fac DSF Fac Was Fac Gar Fac Upp Upp War Pro Fac Gar Fac Machines Disabled 141 | . 16 . 15 . . 3 2 6 60 4 . 1 . . 6 7 . . 1 . . 17 3 Max in Single Turn 8 | . 2 . 2 . . 1 1 1 8 2 . 1 . . 1 4 . . 1 . . 2 2 Garrison Access 2 | . . . . . . . . . 1 . . 1 . . . . . . . . . . . Garrison Relay 16 | . . . . . . . . 4 . . . . . . 3 . . . . . . 9 . Machines Repaired 1 | . . . 1 . . . . . . . . . . . . . . . . . . . . Machines Sabotaged . | . . . . . . . . . . . . . . . . . . . . . . . . Overloaded Fab Kills . | . . . . . . . . . . . . . . . . . . . . . . . . Hacking | -11 -10 -10 -9 -9 -9 -8 -8 -8 -7 -6 -6 -5 -5 -5 -5 -5 -5 -5 -5 -4 -4 -4 -4 --------- Run | Jun Mat Min Mat Min Exi Min Mat Gar Fac Fac DSF Fac Was Fac Gar Fac Upp Upp War Pro Fac Gar Fac Machines Accessed 44 | . 7 . 5 . 1 1 3 3 2 3 . 1 . 1 1 2 3 1 6 . 1 3 . Terminals 22 | . 5 . 4 . . 1 1 3 1 1 . . . . 1 2 . . . . . 3 . Fabricators 1 | . . . . . . . . . . 1 . . . . . . . . . . . . . Repair Stations . | . . . . . . . . . . . . . . . . . . . . . . . . Recycling Units 4 | . 2 . . . . . . . 1 1 . . . . . . . . . . . . . Scanalyzers 2 | . . . 1 . . . 1 . . . . . . . . . . . . . . . . Garrison Access 4 | . . . . . . . 1 . . . . 1 . 1 . . . . . . 1 . . Total Hacks 145 | . 42 . 23 . 1 2 4 4 10 7 . 4 . 4 4 12 7 1 14 . 3 3 . Successful 71 | . 20 . 10 . 1 1 4 3 1 1 . . . 1 . 3 7 1 14 . 1 3 . Failed 72 | . 21 . 12 . . 1 . 1 9 6 . 4 . 3 4 9 . . . . 2 . . Catastrophic 15 | . 5 . 4 . . . . . 4 1 . . . . . 1 . . . . . . . Database Lockouts 2 | . 1 . 1 . . . . . . . . . . . . . . . . . . . . Manual 36 | . 22 . 6 . 1 2 2 . . 2 . . . . . . . . 1 . . . . Terminals 93 | . 37 . 21 . . 2 2 4 6 2 . . . . 4 12 . . . . . 3 . Fabricators 2 | . . . . . . . . . . 2 . . . . . . . . . . . . . Repair Stations . | . . . . . . . . . . . . . . . . . . . . . . . . Recycling Units 12 | . 5 . . . . . . . 4 3 . . . . . . . . . . . . . Scanalyzers 3 | . . . 2 . . . 1 . . . . . . . . . . . . . . . . Garrison Access 12 | . . . . . . . 1 . . . . 4 . 4 . . . . . . 3 . . Terminal Hacks 56 | . 15 . 6 . 1 . 1 3 1 1 . . . . . 3 7 1 14 . . 3 . Record 19 | . 1 . . . . . . . . . . . . . . . 5 . 13 . . . . Robot Analysis 8 | . 5 . 1 . . . . . . . . . . . . 2 . . . . . . . Prototype ID Bank 3 | . 2 . . . . . . . . . . . . . . 1 . . . . . . . Open Door 4 | . . . . . . . . . . . . . . . . . 2 1 1 . . . . Open DSF 1 | . . . . . . . . . . 1 . . . . . . . . . . . . . Level Access Points 1 | . 1 . . . . . . . . . . . . . . . . . . . . . . Branch Access Points 2 | . . . 1 . . . . . 1 . . . . . . . . . . . . . . Emergency Access Points 2 | . . . . . . . . 1 . . . . . . . . . . . . . 1 . Machine Index 1 | . . . 1 . . . . . . . . . . . . . . . . . . . . Terminal Index 1 | . . . 1 . . . . . . . . . . . . . . . . . . . . Unreport Threat 2 | . 1 . 1 . . . . . . . . . . . . . . . . . . . . Reprogram Traps 1 | . 1 . . . . . . . . . . . . . . . . . . . . . . Dispatch Records 1 | . . . . . . . 1 . . . . . . . . . . . . . . . . Security Status 1 | . 1 . . . . . . . . . . . . . . . . . . . . . . Transport Status 1 | . 1 . . . . . . . . . . . . . . . . . . . . . . Hauler Manifests 2 | . 1 . 1 . . . . . . . . . . . . . . . . . . . . Zone Layout 1 | . 1 . . . . . . . . . . . . . . . . . . . . . . Garrison Registry 1 | . . . . . . . . . . . . . . . . . . . . . . 1 . Patrol Navigation 2 | . . . . . . . . 1 . . . . . . . . . . . . . 1 . Security Stations 1 | . . . . . . . . 1 . . . . . . . . . . . . . . . EX-Prototype ID Bank 1 | . . . . . 1 . . . . . . . . . . . . . . . . . . Fabricator Hacks . | . . . . . . . . . . . . . . . . . . . . . . . . Repair Station Hacks . | . . . . . . . . . . . . . . . . . . . . . . . . Recycling Unit Hacks 1 | . 1 . . . . . . . . . . . . . . . . . . . . . . Retrieve Components 1 | . 1 . . . . . . . . . . . . . . . . . . . . . . Scanalyzer 2 | . . . 2 . . . . . . . . . . . . . . . . . . . . Insert Component 1 | . . . 1 . . . . . . . . . . . . . . . . . . . . Analyze 1 | . . . 1 . . . . . . . . . . . . . . . . . . . . Garrison Access Hacks 3 | . . . . . . . 1 . . . . . . 1 . . . . . . 1 . . Unlock Access 3 | . . . . . . . 1 . . . . . . 1 . . . . . . 1 . . Unauthorized Hacks 9 | . 4 . 2 . . 1 2 . . . . . . . . . . . . . . . . Terminals 6 | . 2 . 2 . . 1 1 . . . . . . . . . . . . . . . . Botnet 4 | . 2 . 1 . . . 1 . . . . . . . . . . . . . . . . Sabotage 2 | . . . 1 . . 1 . . . . . . . . . . . . . . . . . Fabricators . | . . . . . . . . . . . . . . . . . . . . . . . . Repair Stations . | . . . . . . . . . . . . . . . . . . . . . . . . Recycling Units 2 | . 2 . . . . . . . . . . . . . . . . . . . . . . Mask 1 | . 1 . . . . . . . . . . . . . . . . . . . . . . Tunnel 1 | . 1 . . . . . . . . . . . . . . . . . . . . . . Scanalyzers 1 | . . . . . . . 1 . . . . . . . . . . . . . . . . Extract 1 | . . . . . . . 1 . . . . . . . . . . . . . . . . Garrison Access . | . . . . . . . . . . . . . . . . . . . . . . . . Data Cores Recovered 4 | . 2 . 1 . . . . . . . . . . 1 . . . . . . . . . Used 1 | . 1 . . . . . . . . . . . . . . . . . . . . . . Hacking Detections 24 | . 6 . 3 . . . 1 2 2 2 . 1 . 1 1 2 . . . . 1 2 . Full Trace Events 13 | . 3 . 2 . . . . . 2 1 . 1 . 1 1 2 . . . . . . . Feedback Events 5 | . . . . . . . . . 1 . . 1 . . . 3 . . . . . . . Corruption 3 | . . . . . . . . . 1 . . . . . . 2 . . . . . . . Hackware Fried 2 | . . . . . . . . . . . . 1 . . . 1 . . . . . . . Feedback Blocked . | . . . . . . . . . . . . . . . . . . . . . . . . Robot Schematics Acquired . | . . . . . . . . . . . . . . . . . . . . . . . . Robots Built . | . . . . . . . . . . . . . . . . . . . . . . . . Authchips . | . . . . . . . . . . . . . . . . . . . . . . . . Time . | . . . . . . . . . . . . . . . . . . . . . . . . Total Robot Build Rating . | . . . . . . . . . . . . . . . . . . . . . . . . Part Schematics Acquired 4 | . . . 1 . . . 3 . . . . . . . . . . . . . . . . Parts Built . | . . . . . . . . . . . . . . . . . . . . . . . . Authchips . | . . . . . . . . . . . . . . . . . . . . . . . . Time . | . . . . . . . . . . . . . . . . . . . . . . . . Total Part Build Rating . | . . . . . . . . . . . . . . . . . . . . . . . . Parts Repaired . | . . . . . . . . . . . . . . . . . . . . . . . . Time . | . . . . . . . . . . . . . . . . . . . . . . . . Parts Recycled . | . . . . . . . . . . . . . . . . . . . . . . . . Recycled Matter . | . . . . . . . . . . . . . . . . . . . . . . . . Retrieved Matter . | . . . . . . . . . . . . . . . . . . . . . . . . Retrieved Components 9 | . 9 . . . . . . . . . . . . . . . . . . . . . . Parts Scanalyzed 1 | . . . 1 . . . . . . . . . . . . . . . . . . . . Part Schematics Acquired 1 | . . . 1 . . . . . . . . . . . . . . . . . . . . Parts Damaged . | . . . . . . . . . . . . . . . . . . . . . . . . Bothacking | -11 -10 -10 -9 -9 -9 -8 -8 -8 -7 -6 -6 -5 -5 -5 -5 -5 -5 -5 -5 -4 -4 -4 -4 ------------ Run | Jun Mat Min Mat Min Exi Min Mat Gar Fac Fac DSF Fac Was Fac Gar Fac Upp Upp War Pro Fac Gar Fac Used RIF Installer . | . . . . . . . . . . . . . . . . . . . . . . . . Robots Hacked . | . . . . . . . . . . . . . . . . . . . . . . . . Non-combat . | . . . . . . . . . . . . . . . . . . . . . . . . Combat . | . . . . . . . . . . . . . . . . . . . . . . . . Robot Hacks Applied . | . . . . . . . . . . . . . . . . . . . . . . . . Relay Couplers Released 29 | . . . . . . . . 6 . . . 2 . . 5 . . . . . . 16 . Machine Destruction 29 | . . . . . . . . 6 . . . 2 . . 5 . . . . . . 16 . Fabnet Peak Effective % . | . . . . . . . . . . . . . . . . . . . . . . . . Robots Rewired 16 | . . . . . . . . . 1 . . . . . 6 . . . . . . 9 . Allies Hacked . | . . . . . . . . . . . . . . . . . . . . . . . . Hacks Repelled . | . . . . . . . . . . . . . . . . . . . . . . . . Allies | -11 -10 -10 -9 -9 -9 -8 -8 -8 -7 -6 -6 -5 -5 -5 -5 -5 -5 -5 -5 -4 -4 -4 -4 -------- Run | Jun Mat Min Mat Min Exi Min Mat Gar Fac Fac DSF Fac Was Fac Gar Fac Upp Upp War Pro Fac Gar Fac Total Allies 22 | . . 3 . 2 . . . . 1 . . . 1 . 6 . . . . . . 9 . Largest Group 6 | . . 3 3 2 1 . . . 1 . . . 1 . 6 6 . . . . . 6 . Highest-Rated Group 342 | . . 40 40 50 31 . . . 30 . . . 31 . 342 342 . . . . . 186 . Highest-Rated Ally 68 | . . 16 16 31 31 . . . 30 . . . 31 . 68 68 . . . . . 50 . Total Orders 2 | . . . . . . . . . . . . . . . . . . . . . . 2 . ROAM 2 | . . . . . . . . . . . . . . . . . . . . . . 2 . Ally Attacks 107 | . . . 27 3 . . . . 3 . . . 16 . 5 29 . . . . . 24 . Total Damage 2800 | . . . 240 20 . . . . 107 . . . 332 . 346 967 . . . . . 788 . Kills 18 | . . . 4 . . . . . 1 . . . . . 3 6 . . . . . 4 . Allies Corrupted 2 | . . . . . . . . . . . . . . . . . . . . . . 2 . Allies Melted 2 | . . . . . . . . . . . . . . . . . . . 1 . . 1 . Intel | -11 -10 -10 -9 -9 -9 -8 -8 -8 -7 -6 -6 -5 -5 -5 -5 -5 -5 -5 -5 -4 -4 -4 -4 ------- Run | Jun Mat Min Mat Min Exi Min Mat Gar Fac Fac DSF Fac Was Fac Gar Fac Upp Upp War Pro Fac Gar Fac Robot Analysis Total 8 | . 5 . 1 . . . . . . . . . . . . 2 . . . . . . . Derelict Logs Recovered 5 | . . 1 . 2 . . . . . . . . . . . . . 1 . 1 . . . Drone Launches . | . . . . . . . . . . . . . . . . . . . . . . . . Drone Recoveries . | . . . . . . . . . . . . . . . . . . . . . . . . Decoded 0b10 Intel 38 | . . . . . . . . . . . . . . . . . . . . . 6 22 10 Traps 29 | . . . . . . . . . . . . . . . . . . . . . 4 19 6 Emergency Access 6 | . . . . . . . . . . . . . . . . . . . . . 2 1 3 Garrisons 1 | . . . . . . . . . . . . . . . . . . . . . . . 1 Exits 2 | . . . . . . . . . . . . . . . . . . . . . . 2 . Exploration | -11 -10 -10 -9 -9 -9 -8 -8 -8 -7 -6 -6 -5 -5 -5 -5 -5 -5 -5 -5 -4 -4 -4 -4 ------------- Run | Jun Mat Min Mat Min Exi Min Mat Gar Fac Fac DSF Fac Was Fac Gar Fac Upp Upp War Pro Fac Gar Fac Turns Passed 16148 | 4 792 176 988 288 196 210 467 1199 2719 161 348 191 293 52 1010 234 955 705 1334 1095 214 2035 482 Spaces Moved 8580 | 3 458 120 590 235 209 165 193 720 1301 113 156 105 146 29 440 154 544 427 694 603 79 870 226 Core 87 | 3 84 . . . . . . . . . . . . . . . . . . . . . . Treads . | . . . . . . . . . . . . . . . . . . . . . . . . Legs 2 | . . . . . . . . . . . . . . . . . . . 2 . . . . Wheels 8491 | . 374 120 590 235 209 165 193 720 1301 113 156 105 146 29 440 154 544 427 692 603 79 870 226 Hover . | . . . . . . . . . . . . . . . . . . . . . . . . Flight . | . . . . . . . . . . . . . . . . . . . . . . . . Fastest Speed 50 | 50 50 100 93 93 93 93 93 108 108 125 125 110 110 145 130 130 130 130 130 145 160 125 125 Average Speed 125 | 50 106 107 100 93 93 93 106 108 111 125 125 111 127 145 134 130 142 140 145 156 160 148 128 Slowest Speed 330 | 50 300 115 115 93 93 93 108 108 130 125 125 125 145 145 145 130 145 145 330 160 160 160 150 Overloaded Moves . | . . . . . . . . . . . . . . . . . . . . . . . . Propulsion Burnouts . | . . . . . . . . . . . . . . . . . . . . . . . . Robots Hopped . | . . . . . . . . . . . . . . . . . . . . . . . . Cave-ins Triggered . | . . . . . . . . . . . . . . . . . . . . . . . . Exploration Rate (%) 48 | 2 90 30 58 58 60 51 25 90 37 5 94 5 83 2 73 8 72 57 79 91 3 90 7 Regions Visited 23 Branch Regions 8 Pre-discovered Areas 4 | . 1 . . 1 . . . . . . . . . . . . 1 . 1 . . . . Known Exits Taken 7 | . . 1 1 . . 1 1 . . 1 . . . 1 . . . . . . 1 . . Unknown Exits Taken 10 | 1 1 . . 1 1 . . . 1 . . . . . . 1 1 1 1 1 . . . Scrap Searched 10 | . . . . 1 . 1 . . . . . . . . . . 3 2 . 3 . . . Spaces Dug 174 | . . . . . . . . . 63 . . 1 . . 42 . 32 . 1 6 . 22 7 Terrain Destroyed 2280 | . 21 . 154 19 . 48 . 20 796 58 122 3 195 . 271 138 115 64 29 38 2 120 67 Melee 1 | . . . . . . . . . . . . . . . . . . . 1 . . . . Projectile 168 | . . . . . . . . . 2 . . 3 . . 22 . 5 6 10 35 2 67 16 AOE 2111 | . 21 . 154 19 . 48 . 20 794 58 122 . 195 . 249 138 110 58 18 3 . 53 51 Terrain Rammed . | . . . . . . . . . . . . . . . . . . . . . . . . Walls Destroyed . | . . . . . . . . . . . . . . . . . . . . . . . . Machines Disabled . | . . . . . . . . . . . . . . . . . . . . . . . . Actions | -11 -10 -10 -9 -9 -9 -8 -8 -8 -7 -6 -6 -5 -5 -5 -5 -5 -5 -5 -5 -4 -4 -4 -4 --------- Run | Jun Mat Min Mat Min Exi Min Mat Gar Fac Fac DSF Fac Was Fac Gar Fac Upp Upp War Pro Fac Gar Fac Total 12409 | 6 635 142 803 283 210 197 406 979 2227 128 280 160 202 37 721 171 693 504 1007 706 162 1388 362 Wait 2208 | . 87 4 63 9 . 13 173 99 588 2 113 36 12 2 140 . 106 32 252 69 79 274 55 Move 8561 | 2 457 119 589 234 208 164 193 719 1300 112 155 105 145 29 439 153 543 426 693 602 79 869 226 Hop . | . . . . . . . . . . . . . . . . . . . . . . . . Pick Up 48 | . 1 . 1 . . . . 2 15 . 3 2 2 1 1 3 1 4 6 1 1 1 3 Fast Attach 101 | 1 10 2 17 2 1 1 2 5 13 2 . 2 1 1 2 1 7 1 14 . . 10 6 Attach 24 | . . . . . . . . 1 3 . 1 . 1 1 2 3 . 3 2 2 1 1 3 Detach 16 | . 1 . 2 1 1 1 . . . . . . 1 2 . . . 2 2 . . 3 . Swap 62 | . 2 . 4 2 . 2 . . 15 . . 3 2 . 1 2 5 2 1 2 . 7 12 Drop 116 | 3 2 2 12 1 . . . 6 26 2 2 3 2 . 3 2 8 5 19 1 . 10 7 Fire 815 | . 67 12 88 11 . 14 24 94 170 2 6 9 17 1 72 7 14 18 8 21 2 123 35 Melee 1 | . . . . . . . . . . . . . . . . . . . 1 . . . . Ram . | . . . . . . . . . . . . . . . . . . . . . . . . Kick . | . . . . . . . . . . . . . . . . . . . . . . . . Crush . | . . . . . . . . . . . . . . . . . . . . . . . . Escape Stasis 40 | . . . . . . . . 16 . 8 . . . . 8 . . . . . . . 8 Rewire 72 | . . . . . . 1 . . 3 . . . . . 37 . . . . . . 31 . Trap 2 | . . . . . . . . . . . . . . . . . . 2 . . . . . Miscellaneous 343 | . 8 3 27 23 . 1 14 37 94 . . . 19 . 16 . 9 9 9 8 . 59 7 Route ------- -11/Junkyard -10/Materials (discovered 4 exits: *Mat x3 / [*Min]) -10/Mines -9/Materials (discovered 5 exits: *Mat / *Min x2 / *Sto x2) -9/Mines (discovered 3 exits: *Mat x2 / *Exi) -9/Exiles -8/Mines -8/Materials -8/Garrison (discovered 3 exits: *Fac x3) -7/Factory (discovered 5 exits: *Fac x3 / Low x2) -6/Factory -6/DSF -5/Factory -5/Waste -5/Factory -5/Garrison (discovered 3 exits: *Fac x3) -5/Factory -5/Upper Caves -5/Upper Caves (discovered 2 exits: *Fac / *War) -5/Warlord -4/Proximity Caves -4/Factory (discovered 2 exits: Upp / Gar) -4/Garrison (discovered 3 exits: *Fac x3) -4/Factory History --------- Turn | Location | Event 2 | -11/Junkyard | Discovered new exit (range 1) 5 | -11/Junkyard | Entered Materials 48 | -10/Materials | Discovered new exit (range 16) 58 | -10/Materials | Upgraded with Power slot (x1) 58 | -10/Materials | Upgraded with Utility slot (x1) 58 | -10/Materials | Upgraded with Weapon slot (x1) 188 | -10/Materials | Upgraded with Propulsion slot (x1) 263 | -10/Materials | Central database locked down 280 | -10/Materials | Discovered new exit (range 13) 295 | -10/Materials | Identified exit to Materials 303 | -10/Materials | Build established: Mutant 463 | -10/Materials | Reached level 2 746 | -10/Materials | Reached level 3 752 | -10/Materials | Upgraded with Utility slot (x2) 776 | -10/Materials | Build established: Hacker-Mutant 797 | -10/Materials | Entered Mines 834 | -10/Mines | Learned location of 1 exit from Materials 851 | -10/Mines | YI-UF0 nonchalantly dropped a Grenade Launcher on the ground 862 | -10/Mines | Destroyed YI-UF0 877 | -10/Mines | Found Corrupted Prototype Storage 877 | -10/Mines | Identified YI-UF0's Bottomless Matter Pit 957 | -10/Mines | Assisted by bots powering up and referring to "LRC-V3" 962 | -10/Mines | Discovered exit to Materials (range 5) 973 | -10/Mines | Entered Materials 973 | -9/Materials | Accompanied by 3 allies 974 | -9/Materials | Identified exit to Mines 975 | -9/Materials | Reached level 4 1067 | -9/Materials | Reached level 5 1095 | -9/Materials | Identified exit to Storage 1165 | -9/Materials | Central database locked down 1188 | -9/Materials | Upgraded with Propulsion slot (x1) 1188 | -9/Materials | Upgraded with Utility slot (x1) 1371 | -9/Materials | Reached level 6 1378 | -9/Materials | Upgraded with Utility slot (x1) 1481 | -9/Materials | Reached level 7 1502 | -9/Materials | Destroyed 8 combat bots 1619 | -9/Materials | Build established: Scavenger-Mutant 1660 | -9/Materials | Discovered new exit (range 16) 1773 | -9/Materials | First assault squad dispatched 1852 | -9/Materials | Reached level 8 1879 | -9/Materials | Destroyed 9 combat bots 1961 | -9/Materials | Entered Mines 1965 | -9/Mines | Learned location of Zion (-6) 1966 | -9/Mines | Discovered new exit (range 17) 1985 | -9/Mines | Build established: Hacker-Mutant 2037 | -9/Mines | Destroyed 7 combat bots 2063 | -9/Mines | Assembled infested the area 2149 | -9/Mines | Identified exit to Materials 2154 | -9/Mines | Met 8R-AWN 2229 | -9/Mines | A weapon hastily lodged in a ceiling crevice suddenly fell to the ground 2237 | -9/Mines | Discovered new exit (range 5) 2249 | -9/Mines | Entered Exiles 2249 | -9/Exiles | Accompanied by 1 ally 2251 | -9/Exiles | Reached level 9 2273 | -9/Exiles | Welcomed by 8R-AWN 2279 | -9/Exiles | Led the pair of lost Derelicts to a safe place 2288 | -9/Exiles | Met EX-HEX 2313 | -9/Exiles | Met EX-BIN 2324 | -9/Exiles | Aligned with FarCom system 2325 | -9/Exiles | Given EX-Vault access code 2346 | -9/Exiles | Opened EX-Vault 2355 | -9/Exiles | Found Cloak of Protection 2377 | -9/Exiles | Warned to stay clear of 0b10 Research branches 2402 | -9/Exiles | Met EX-DEC 2436 | -9/Exiles | Discovered new exit (range 10) 2445 | -9/Exiles | Left Exiles lab with Cloak of Protection 2445 | -9/Exiles | Entered Mines 2596 | -8/Mines | Discovered exit to Materials (range 17) 2652 | -8/Mines | Reached level 10 2655 | -8/Mines | Entered Materials 2657 | -8/Materials | Reached level 11 2755 | -8/Materials | Upgraded with Utility slot (x2) 2907 | -8/Materials | Build established: Hacker-Skirmisher 3122 | -8/Materials | Identified exit to Garrison 3122 | -8/Materials | Entered Garrison 3124 | -8/Garrison | Reached level 12 3162 | -8/Garrison | Triggered checkpoint 3246 | -8/Garrison | Destroyed 7 combat bots 3441 | -8/Garrison | Discovered new exit (range 10) 3496 | -8/Garrison | Triggered checkpoint 3583 | -8/Garrison | Garrison Relay disabled 3684 | -8/Garrison | Triggered checkpoint 3749 | -8/Garrison | Garrison Relay disabled 3760 | -8/Garrison | Learned Factory security intel 3838 | -8/Garrison | Discovered new exit (range 12) 3934 | -8/Garrison | Triggered checkpoint 3983 | -8/Garrison | Reached level 13 4019 | -8/Garrison | Garrison Relay disabled 4172 | -8/Garrison | Discovered new exit (range 5) 4228 | -8/Garrison | Triggered checkpoint 4243 | -8/Garrison | Garrison Relay disabled 4321 | -8/Garrison | Entered Factory 4321 | -7/Factory | Upgraded with Utility slot (x1) 4323 | -7/Factory | Reached level 14 4387 | -7/Factory | Identified exit to Lower Caves 4487 | -7/Factory | Build established: Scavenger-Skirmisher 4496 | -7/Factory | Discovered new exit (range 15) 4595 | -7/Factory | System corruption reached 10% 4721 | -7/Factory | First assault squad dispatched 4902 | -7/Factory | Reached level 15 5244 | -7/Factory | Upgraded with Utility slot (x1) 5344 | -7/Factory | Cargo convoy interrupted 5722 | -7/Factory | Reached level 16 6067 | -7/Factory | High security lockdown imminent 6097 | -7/Factory | Destroyed 8 combat bots 6147 | -7/Factory | High security lockdown engaged 6239 | -7/Factory | P-60 Hacker assimilated allied Fighter 4a 6292 | -7/Factory | Reached level 17 6353 | -7/Factory | Destroyed 29 combat bots 6555 | -7/Factory | Destroyed 16 combat bots 6634 | -7/Factory | Reached level 18 6688 | -7/Factory | Core integrity fell below 50% 6709 | -7/Factory | Build established: Hacker-Skirmisher 6714 | -7/Factory | Core integrity fell below 20% 6751 | -7/Factory | Destroyed 26 combat bots 6754 | -7/Factory | Sterilization system engaged 6754 | -7/Factory | Non-combat units ordered to evacuate 6854 | -7/Factory | Combat units ordered to evacuate 6921 | -7/Factory | Discovered new exit (range 17) 6932 | -7/Factory | Discovered new exit (range 13) 7040 | -7/Factory | Entered another Factory area 7041 | -6/Factory | Core integrity fell below 50% 7101 | -6/Factory | Reached level 19 7157 | -6/Factory | Found Prototype Launcher 7157 | -6/Factory | Identified Scatter Rocket Array 7161 | -6/Factory | Found Scatter Rocket Array 7200 | -6/Factory | Identified exit to DSF 7201 | -6/Factory | Entered DSF 7223 | -6/DSF | Discovered new exit (range 17) 7237 | -6/DSF | Additional patrols routed to DSF 7519 | -6/DSF | Sterilization system engaged 7539 | -6/DSF | Ambient heat levels rising (+10) 7549 | -6/DSF | Entered Factory 7550 | -5/Factory | Core integrity fell below 50% 7551 | -5/Factory | Reached level 20 7591 | -5/Factory | Hacking Suite fried by hacking feedback 7591 | -5/Factory | Reached level 21 7740 | -5/Factory | Sucked down chute 7740 | -5/Factory | Entered Waste 7741 | -5/Waste | Met a frightened Derelict 7749 | -5/Waste | Spotted C-40 Crusher 7788 | -5/Waste | Spotted C-40 Crusher 7801 | -5/Waste | Destroyed C-40 Crusher 7802 | -5/Waste | Core integrity fell below 20% 7807 | -5/Waste | Spotted C-40 Crusher 7813 | -5/Waste | Destroyed C-40 Crusher 7813 | -5/Waste | Destroyed C-40 Crusher 7819 | -5/Waste | Spotted C-40 Crusher 7839 | -5/Waste | Crushed by Compactor (1 part destroyed, 1 dropped) 7839 | -5/Waste | Destroyed C-40 Crusher 7865 | -5/Waste | Spotted C-40 Crusher 7870 | -5/Waste | Destroyed C-40 Crusher 7923 | -5/Waste | Spotted C-40 Crusher 7927 | -5/Waste | Destroyed C-40 Crusher 7968 | -5/Waste | Discovered new exit (range 14) 7983 | -5/Waste | Upgraded with Utility slot (x1) 8033 | -5/Waste | Entered Factory 8085 | -5/Factory | Identified exit to Garrison 8085 | -5/Factory | Entered Garrison 8161 | -5/Garrison | Triggered checkpoint 8205 | -5/Garrison | Garrison Relay disabled 8547 | -5/Garrison | Reached level 22 8547 | -5/Garrison | Triggered checkpoint 8569 | -5/Garrison | Triggered checkpoint 8590 | -5/Garrison | Destroyed 8 combat bots 8639 | -5/Garrison | Garrison Relay disabled 8659 | -5/Garrison | Discovered new exit (range 16) 8737 | -5/Garrison | Destroyed 13 combat bots 8938 | -5/Garrison | Triggered checkpoint 8964 | -5/Garrison | Garrison Relay disabled 8992 | -5/Garrison | Discovered new exit (range 10) 9050 | -5/Garrison | Triggered checkpoint 9073 | -5/Garrison | Discovered new exit (range 6) 9095 | -5/Garrison | Entered Factory 9095 | -5/Factory | Accompanied by 6 allies 9179 | -5/Factory | Reached level 23 9235 | -5/Factory | Hacking Suite fried by hacking feedback 9287 | -5/Factory | Discovered new exit (range 16) 9316 | -5/Factory | Garrison activated, responded to threat 9327 | -5/Factory | Upgraded with Weapon slot (x1) 9329 | -5/Factory | Entered Upper Caves 9378 | -5/Upper Caves | Met a Warlord Commander 9379 | -5/Upper Caves | Learned location of Warlord (-5) 9396 | -5/Upper Caves | Found Encrypted Comm Array 9432 | -5/Upper Caves | Learned Research trap positions 9432 | -5/Upper Caves | Learned Armory trap positions 9432 | -5/Upper Caves | Learned Extension security intel 9604 | -5/Upper Caves | Build established: Hacker-Assassin 9701 | -5/Upper Caves | Attracted the attention of an 0b10 checkpoint 10103 | -5/Upper Caves | Discovered new exit (range 15) 10284 | -5/Upper Caves | Entered another Upper Caves area 10316 | -5/Upper Caves | Discovered new exit (range 11) 10344 | -5/Upper Caves | Attracted the attention of an 0b10 checkpoint 10430 | -5/Upper Caves | Build established: Hacker-Gunner 10860 | -5/Upper Caves | Discovered new exit (range 8) 10895 | -5/Upper Caves | Learned location of 1 exit from Factory 10989 | -5/Upper Caves | Entered Warlord 11027 | -5/Warlord | Discovered new exit (range 8) 11076 | -5/Warlord | System corruption cleaned by Quarantine Array 11114 | -5/Warlord | Build established: Hacker-Mutant 11201 | -5/Warlord | Visited the Vortex Lab 11215 | -5/Warlord | Found Prototype Energy Cannon 11215 | -5/Warlord | Identified Vortex Driver 11216 | -5/Warlord | Warlord's base attacked by MAIN.C 11220 | -5/Warlord | Found Prototype Energy Cannon 11220 | -5/Warlord | Identified Vortex Cannon 11227 | -5/Warlord | Found Prototype Energy Gun 11228 | -5/Warlord | Identified Vortex Rail 11232 | -5/Warlord | Found Vortex Rail 11240 | -5/Warlord | Found Vortex Driver 11243 | -5/Warlord | Found Vortex Cannon 11295 | -5/Warlord | Learned Armory security intel 11295 | -5/Warlord | Learned Factory fabricator intel 11295 | -5/Warlord | Learned 4 Quarantine zone layouts 11295 | -5/Warlord | Learned Research trap positions 11295 | -5/Warlord | Learned Armory emergency access door positions 11295 | -5/Warlord | Learned Testing emergency access door positions 11566 | -5/Warlord | Warlord forces counterattacked 11703 | -5/Warlord | Met Warlord 11703 | -5/Warlord | Reached level 24 11724 | -5/Warlord | Found Prototype Reactor 11724 | -5/Warlord | Identified Vortex Chain Reactor 11730 | -5/Warlord | Found Prototype Processor 11730 | -5/Warlord | Identified Exp. Targeting Computer 11738 | -5/Warlord | Found Prototype Processor 11738 | -5/Warlord | Identified Exp. Target Analyzer 11743 | -5/Warlord | Found Prototype Hackware 11743 | -5/Warlord | Identified System Mapper 11750 | -5/Warlord | Found Prototype Device 11750 | -5/Warlord | Identified System Purifier 11887 | -5/Warlord | Upgraded with Weapon slot (x1) 11891 | -5/Warlord | Warlord base infiltrated, sounded retreat 11896 | -5/Warlord | Spotted Striker 12039 | -5/Warlord | Spotted Executioner 12323 | -5/Warlord | Entered Proximity Caves 12864 | -4/Proximity Caves | Received a Behemoth hack from an annoying Tinkerer 12871 | -4/Proximity Caves | Attracted the attention of an 0b10 checkpoint 13117 | -4/Proximity Caves | Spotted B-86 Titan 13147 | -4/Proximity Caves | Destroyed B-86 Titan 13396 | -4/Proximity Caves | Discovered new exit (range 12) 13418 | -4/Proximity Caves | Entered Factory 13419 | -4/Factory | Identified exit to Upper Caves 13419 | -4/Factory | Core integrity fell below 50% 13420 | -4/Factory | Loaded intel: 6 fabricator locations 13420 | -4/Factory | Reached level 25 13632 | -4/Factory | Identified exit to Garrison 13632 | -4/Factory | Entered Garrison 13655 | -4/Garrison | Triggered checkpoint 13746 | -4/Garrison | Found Adv. Powered Armor 13749 | -4/Garrison | Found Adv. Powered Armor 13870 | -4/Garrison | Garrison Relay disabled 13904 | -4/Garrison | Triggered checkpoint 13920 | -4/Garrison | Triggered checkpoint 13938 | -4/Garrison | Triggered checkpoint 14013 | -4/Garrison | Core integrity fell below 20% 14092 | -4/Garrison | Triggered checkpoint 14254 | -4/Garrison | Garrison Relay disabled 14254 | -4/Garrison | Reached level 26 14626 | -4/Garrison | Triggered checkpoint 14637 | -4/Garrison | Build established: Hacker-Gunner 14698 | -4/Garrison | Triggered checkpoint 14798 | -4/Garrison | Discovered new exit (range 15) 14896 | -4/Garrison | Triggered checkpoint 14954 | -4/Garrison | Garrison Relay disabled 15002 | -4/Garrison | Triggered checkpoint 15170 | -4/Garrison | Identified exit to Factory 15176 | -4/Garrison | Garrison Relay disabled 15232 | -4/Garrison | Spotted B-86 Titan 15355 | -4/Garrison | Triggered checkpoint 15433 | -4/Garrison | Garrison Relay disabled 15502 | -4/Garrison | Garrison Relay disabled 15513 | -4/Garrison | Garrison Relay disabled 15522 | -4/Garrison | Garrison Relay disabled 15569 | -4/Garrison | Discovered exit to Factory (range 84) 15569 | -4/Garrison | Discovered exit to Factory (range 11) 15569 | -4/Garrison | Discovered exit to Factory (range 42) 15594 | -4/Garrison | Triggered checkpoint 15607 | -4/Garrison | Garrison Relay disabled 15667 | -4/Garrison | Entered Factory 15934 | -4/Factory | Found Quantum Capacitor 15961 | -4/Factory | First assault squad dispatched 16035 | -4/Factory | Spotted B-86 Titan 16112 | -4/Factory | Reached level 27 16149 | -4/Factory | Destroyed by H-71 Marshal with Heavy Mass Driver Last Messages --------------- 16135_ K-01 Serf collects debris. 16135_ U-05 Engineer lays Concrete. 16136_ Acquired Protomatter-46. 16136_ U-05 Engineer builds a Wall. 16140_ U-05 Engineer lays Concrete. 16140_ K-01 Serf collects debris. 16141_ U-05 Engineer builds a Wall. 16143_ G-67 Veteran destroyed. 16143_ Switching to secondary target: H-71 Marshal. 16144_ K-01 Serf collects debris. 16144_ U-05 Engineer builds a Wall. 16145_ Knocked back. 16145_ U-05 Engineer builds a Wall. 16146_ R-10 Processor collects Flexi-carbon Leg. 16147_ Slug penetrates Wall. 16147_ H-71 Marshal calls for reinforcements. 16147_ ALERT: Hostile activity reported, dispatching reinforcements to area. 16147_ Knocked back. 16147_ K-01 Serf collects debris. Map ----- +----------------------------------------------------+ | ???????????????????# = #??????????????? | | ???????????????????####+##### ###??????????????? | | ???????????????????# = # #????????????????? | | ???????????????????# == + #????????????????? | | ???????????????????# == # #????????????????? | | ?????????########### # #????????????????? | | ?????????# ## # #????????????????? | | ?????????# ## # #????????????????? | | ?????????# ## # #????????????????? | | ########## ## # #????????????????? | | # == + ## # #????????????????? | | # = ! # ########### #????????????????? | | # = # #????????## #????????????????? | | # = # #?????????#i#????????????????? | | # ####+#####?????????# #????????????????? | | # """"" # ######???### ###??????????????? | | # """"" # #; ;;##### #??????????????? | | #! """ # " t %% #??????????????? | | # + "T #??????????????? | | # """ # "%% H #??????????????? | | # """ # ##%%=%;;## #??????????????? | | # """ # # %= ;?###+###??????????????? | | # #"""""""# ! = #?? ???????????????? | | # """"" "" # R #?] """ #??????????????? | | # """"" "" # ## """ #??????????????? | | # """ " # % @## """ #??????????????? | | # ! # k ## #??????????????? | | # # %## ^ #??????????????? | | ######## # # %= #####+###??????????????? | | ?????#?# # # % % #???????????????/??????? | | ?????# # # # %%%#??????????????????????? | | ??????# # # [=*#??????????????????????? | | ??????## # %+%?????????????????????? | | ???????## #u # ???????????????????? | | ????????# #;;##### ""?????????????????? | | ????????# | # ?# Y?????????????????? | | ????????##""""!#/;=#?? ""?????????????????? | | ?????????# " B #?? ?????????????????? | | ?????????##### #BB #?? ? ???????????????? | | ?????????????### ##??? ?? =???????????????? | | ??????????????## "#### !!=%*??????????????? | | ?????????????###=!% !! ??????????????? | | ?????????????# #%%= ! ????????????^?? | | ?????????????###%! ??????????????? | | ???????????????#"###############???????????????? | | ???????????????# #?????????????????????????????? | | ???????????????# #?????????????????????????????? | | ???????????????# #?????????????????????????????? | | ???????????????###?????????????????????????????? | | ???????????????????????????????????????????????? | +----------------------------------------------------+ Best States ------------- Heat Dissipation 109 Energy Generation 65 Energy Capacity 700 Matter Stores 1800 Matter Capacity 1800 Sight Range 17 Robot Scan Range 2 Terrain Scan Range 16 Terrain Scan Density 210 Cloak Strength 5 EM Shielding 2 Armor Coverage 1025 Resistance: KI 30 Resistance: TH 25 Resistance: EX 25 Weapon Cycling 20 Phase Shifting 15 Evasion (%) 55 Targeting Accuracy 24 Launcher Accuracy 20 Target Analysis 10 Core Analysis 6 Particle Charging 25 Kinecelleration 40 Offensive Hacking 30 Defensive Hacking 20 Item Schematics ----------------- Mni. Grenade Launcher | -9/Materials | Scanalyzed Lgt. Cannon | -8/Materials | Extracted Autogun | -8/Materials | Extracted Aluminum Leg | -8/Materials | Extracted Robot Schematics ------------------ None Fabricated ------------ Nothing Alien Tech Used ----------------- None Achievements -------------- None Challenges ------------ None RPGLIKE | -11 -10 -10 -9 -9 -9 -8 -8 -8 -7 -6 -6 -5 -5 -5 -5 -5 -5 -5 -5 -4 -4 -4 -4 --------- Run | Jun Mat Min Mat Min Exi Min Mat Gar Fac Fac DSF Fac Was Fac Gar Fac Upp Upp War Pro Fac Gar Fac Levels Raised 26 | . 2 . 5 . 1 1 1 2 5 1 . 2 . . 1 1 . . 1 . 1 1 1 XP Earned 42091 | 3000 3055 850 6876 1083 211 1475 2598 2244 7852 856 927 2107 109 43 2625 614 370 381 325 969 778 2408 335 XP Spent 41995 | . 5970 . 4400 750 . . 4490 . 11660 . 220 700 4760 . . 800 1950 170 1500 . . 3015 1610 Upgrades 78 | . 17 . 4 1 . . 5 . 20 . 2 2 6 . . 1 3 1 3 . . 7 6 Power Slot 1 | . 1 . . . . . . . . . . . . . . . . . . . . . . Propulsion Slot 2 | . 1 . 1 . . . . . . . . . . . . . . . . . . . . Utility Slot 10 | . 3 . 2 . . . 2 . 2 . . . 1 . . . . . . . . . . Weapon Slot 3 | . 1 . . . . . . . . . . . . . . 1 . . 1 . . . . Core Integrity 19 | . . . . . . . . . 8 . 2 . 4 . . . . . . . . 1 4 Heat Dissipation 14 | . 4 . . . . . . . 2 . . . . . . . . 1 2 . . 5 . Energy Generation 2 | . . . . . . . . . . . . . . . . . . . . . . . 2 Mass Support 1 | . 1 . . . . . . . . . . . . . . . . . . . . . . Inventory Capacity 6 | . 1 . 1 1 . . . . . . . . 1 . . . 1 . . . . 1 . Sight Range 1 | . 1 . . . . . . . . . . . . . . . . . . . . . . Sensor Range 1 | . . . . . . . 1 . . . . . . . . . . . . . . . . Terrain Scan Density 2 | . . . . . . . 2 . . . . . . . . . . . . . . . . Ranged Accuracy 4 | . . . . . . . . . 4 . . . . . . . . . . . . . . Hack Attack % 2 | . 2 . . . . . . . . . . . . . . . . . . . . . . Hack Defense % 2 | . 2 . . . . . . . . . . . . . . . . . . . . . . KI Damage % 2 | . . . . . . . . . . . . . . . . . 2 . . . . . . TH Damage % 2 | . . . . . . . . . . . . 2 . . . . . . . . . . . EX Damage % 4 | . . . . . . . . . 4 . . . . . . . . . . . . . . Protomatter Created 3933 | . 72 18 270 102 . 5 133 553 1262 . 114 . 255 . 173 15 81 70 45 52 . 527 186 Integrity Restored 6964 | . 134 54 553 451 . 14 281 722 1767 . . . 438 . 327 . 198 198 198 150 . 1317 162 Core 5626 | . 70 54 327 348 . 14 224 544 1057 . . . 438 . 327 . 198 198 198 150 . 1317 162 Parts 1338 | . 64 . 226 103 . . 57 178 710 . . . . . . . . . . . . . . Protomatter Decayed 2241 | . 13 . 145 82 . . 2 201 563 . . . . . 4 . . 4 973 . . 178 76 Game ------ Seed NullSeismicFlamer Manual? 0 Play Time 02:27:18 Cumulative 564.3 hours Start 2023.04.16 @ 15:58:40 End 2023.04.16 @ 21:38:27 Sessions 1 Manual Loads 0 Difficulty Rogue Special Mode Winter2019/RPGLIKE Game No. 579 Rogue 579 Adventurer 0 Explorer 0 Win Type - Total 1 Types 1/0/0/0/0/0/0/0/0 Lore% 71 Gallery% 86 Achievement% 68 Wizard Run 0 Options --------- ASCII 0 Keyboard 0 Movement Mouse Keybinds 0 Fullscreen 2 Font 24/Smallcaps Map View 76x50 Tactical HUD 1 Map Filters NONE Filters NONE Steam 1 RUN: f9acbb2c-0baa-468b-819b-5db4626195d9